fUSD/lending_fUSD_20250128
["ID","MTS","AMOUNT","RATE_DAILY","PERIOD"]
[350690846,1738062653492,-500.0,0.00019194,2]
[350690847,1738062653501,-287.92583439,0.00019194,2]
[350690848,1738062653510,-500.0,0.00019194,2]
[350690849,1738062653520,-500.0,0.00019194,2]
[350690850,1738062653529,-500.0,0.00019194,2]
[350690851,1738062653538,-343.01881742,0.00019194,2]
[350690852,1738062653547,-1710.17,0.00019194,2]
[350690853,1738062653556,-500.0,0.00019194,2]
[350690854,1738062653565,-500.0,0.00019194,2]
[350690855,1738062653574,-1116.79,0.00019194,2]
[350690856,1738062653582,-500.0,0.00019194,2]
[350690857,1738062653592,-500.0,0.00019194,2]
[350690858,1738062653601,-770.07,0.00019194,2]
[350690859,1738062653609,-516.99,0.00019194,2]
[350690860,1738062653618,-500.0,0.00019194,2]
[350690861,1738062653627,-971.02,0.00019194,2]
[350690862,1738062653636,-938.22,0.00019194,2]
[350690863,1738062653645,-1000.0,0.00019194,2]
[350690864,1738062653654,-500.0,0.00019194,2]
[350690865,1738062653663,-1617.07,0.00019194,2]
[350690866,1738062653672,-500.0,0.00019194,2]
[350690867,1738062653681,-500.0,0.00019194,2]
[350690868,1738062653691,-1077.83,0.00019194,2]
[350690869,1738062653700,-500.0,0.00019194,2]
[350690870,1738062653709,-688.54,0.00019194,2]
[350690871,1738062653719,-622.97,0.00019194,2]
[350690872,1738062653727,-500.0,0.00019194,2]
[350690873,1738062653737,-1121.35,0.00019194,2]
[350690874,1738062653746,-2218.3,0.00019194,2]
[350690875,1738062653755,-2122.62,0.00019194,2]
[350690876,1738062653763,-170.57476525,0.00019194,2]
[350690877,1738062653772,-500.0,0.00019194,2]
[350690878,1738062653781,-981.59,0.00019194,2]
[350690879,1738062653790,-598.14,0.00019194,2]
[350690880,1738062653799,-500.0,0.00019194,2]
[350690881,1738062653808,-597.37,0.00019194,2]
[350690882,1738062653817,-507.12,0.00019194,2]
[350690883,1738062653825,-500.0,0.00019194,2]
[350690884,1738062653835,-500.0,0.00019194,2]
[350690885,1738062653843,-500.0,0.00019194,2]
[350690886,1738062653852,-500.0,0.00019194,2]
[350690887,1738062653861,-500.0,0.00019194,2]
[350690888,1738062653870,-509.35940889,0.00019194,2]
[350690889,1738062653879,-500.0,0.00019194,2]
[350690890,1738062653888,-2012.53,0.00019194,2]
[350690891,1738062653896,-500.0,0.00019194,2]
[350690892,1738062653905,-958.26,0.00019194,2]
[350690893,1738062653914,-626.91741519,0.00019194,2]
[350690894,1738062653923,-229.80883449,0.00019194,2]
[350690895,1738062653932,-1505.46,0.00019194,2]
[350690896,1738062653941,-542.64,0.00019194,2]
[350690897,1738062653951,-500.0,0.00019194,2]
[350690898,1738062653959,-871.0,0.00019194,2]
[350690899,1738062653968,-500.0,0.00019194,2]
[350690900,1738062653977,-500.0,0.00019194,2]
[350690901,1738062653986,-500.0,0.00019194,2]
[350690902,1738062653995,-796.45,0.00019194,2]
[350690903,1738062654004,-500.0,0.00019194,2]
[350690904,1738062654013,-1429.69,0.00019194,2]
[350690905,1738062654022,-500.0,0.00019194,2]
[350690906,1738062654032,-500.0,0.00019194,2]
[350690907,1738062654041,-1419.19,0.00019194,2]
[350690908,1738062654050,-1385.3,0.00019194,2]
[350690909,1738062654059,-16893.22206933,0.00019194,2]
[350690910,1738062654069,-500.0,0.00019194,2]
[350690911,1738062654078,-3410.02146729,0.00019194,2]
[350690912,1738062654087,-500.0,0.00019194,2]
[350690913,1738062654096,-500.0,0.00019194,2]
[350690914,1738062654105,-500.0,0.00019194,2]
[350690915,1738062654115,-500.0,0.00019194,2]
[350690916,1738062654123,-668.5,0.00019194,2]
[350690917,1738062654132,-500.0,0.00019194,2]
[350690918,1738062654142,-229.57744841,0.00019194,2]
[350690919,1738062654151,-500.0,0.00019194,2]
[350690920,1738062654160,-814.94,0.00019194,2]
[350690921,1738062654169,-500.0,0.00019194,2]
[350690922,1738062654179,-612.33,0.00019194,2]
[350690923,1738062654187,-549.33,0.00019194,2]
[350690924,1738062654197,-500.0,0.00019194,2]
[350690925,1738062654206,-612.52,0.00019194,2]
[350690926,1738062654215,-500.0,0.00019194,2]
[350690927,1738062654224,-592.08,0.00019194,2]
[350690928,1738062654233,-1191.17,0.00019194,2]
[350690929,1738062654243,-636.19,0.00019194,2]
[350690930,1738062654252,-500.0,0.00019194,2]
[350690931,1738062654261,-616.84,0.00019194,2]
[350690932,1738062654271,-500.0,0.00019194,2]
[350690933,1738062654280,-500.0,0.00019195,2]
[350690934,1738062654290,-500.0,0.00019195,2]
[350690935,1738062654299,-787.94,0.00019195,2]
[350690936,1738062654310,-497.6123452,0.00019195,2]
[350690937,1738062654319,-630.3,0.00019195,2]
[350690938,1738062654328,-500.0,0.00019195,2]
[350690939,1738062654337,-500.0,0.00019195,2]
[350690940,1738062654347,-500.0,0.00019195,2]
[350690941,1738062654358,-500.0,0.00019195,2]
[350690942,1738062654367,-500.0,0.00019195,2]
[350690943,1738062654376,-500.0,0.00019195,2]
[350690944,1738062654385,-500.0,0.00019195,2]
[350690945,1738062654395,-500.0,0.00019195,2]
[350690946,1738062654404,-500.0,0.00019195,2]
[350690947,1738062654413,-616.88,0.00019195,2]
[350690948,1738062654422,-500.0,0.00019195,2]
[350690949,1738062654432,-500.0,0.00019195,2]
[350690950,1738062654441,-500.0,0.00019195,2]
[350690951,1738062654450,-806.19,0.00019195,2]
[350690952,1738062654459,-500.0,0.00019195,2]
[350690953,1738062654468,-500.0,0.00019195,2]
[350690954,1738062654477,-500.0,0.00019195,2]
[350690955,1738062654486,-500.0,0.00019195,2]
[350690956,1738062654495,-500.0,0.00019195,2]
[350690957,1738062654504,-601.27,0.00019195,2]
[350690958,1738062654513,-500.0,0.00019195,2]
[350690959,1738062654522,-500.0,0.00019195,2]
[350690960,1738062654532,-500.0,0.00019195,2]
[350690961,1738062654541,-500.0,0.00019195,2]
[350690962,1738062654550,-500.0,0.00019195,2]
[350690963,1738062654559,-500.0,0.00019195,2]
[350690964,1738062654569,-500.0,0.00019195,2]
[350690965,1738062654579,-500.0,0.00019195,2]
[350690966,1738062654588,-500.0,0.00019195,2]
[350690967,1738062654598,-500.0,0.00019195,2]
[350690968,1738062654607,-500.0,0.00019195,2]
[350690969,1738062654616,-790.0,0.00019195,2]
[350690970,1738062654626,-257.31587797,0.00019195,2]
[350690971,1738062654635,-500.0,0.00019195,2]
[350690972,1738062654645,-535.44,0.00019195,2]
[350690973,1738062654654,-500.0,0.00019195,2]
[350690974,1738062654664,-616.58,0.00019195,2]
[350690975,1738062654673,-500.0,0.00019195,2]
[350690976,1738062654682,-500.0,0.00019195,2]
[350690977,1738062654691,-640.93,0.00019195,2]
[350690978,1738062654701,-500.0,0.00019195,2]
[350690979,1738062654710,-500.0,0.00019195,2]
[350690980,1738062654719,-500.0,0.00019195,2]
[350690981,1738062654729,-500.0,0.00019195,2]
[350690982,1738062654738,-500.0,0.00019195,2]
[350690983,1738062654747,-500.0,0.00019195,2]
[350690984,1738062654757,-500.0,0.00019195,2]
[350690985,1738062654766,-500.0,0.00019195,2]
[350690986,1738062654776,-818.19,0.00019195,2]
[350690987,1738062654784,-500.0,0.00019195,2]
[350690988,1738062654793,-500.0,0.00019195,2]
[350690989,1738062654802,-500.0,0.00019195,2]
[350690990,1738062654811,-507.9647397,0.00019195,2]
[350690991,1738062654820,-500.0,0.00019195,2]
[350690992,1738062654829,-500.0,0.00019195,2]
[350690993,1738062654837,-500.0,0.00019195,2]
[350690994,1738062654846,-517.58,0.00019195,2]
[350690995,1738062654855,-500.0,0.00019195,2]
[350690996,1738062654864,-565.03,0.00019195,2]
[350690997,1738062654873,-500.0,0.00019195,2]
[350690998,1738062654883,-500.0,0.00019195,2]
[350690999,1738062654892,-500.0,0.00019195,2]
[350691000,1738062654901,-650.62,0.00019195,2]
[350691001,1738062654910,-500.0,0.00019195,2]
[350691002,1738062654919,-933.59,0.00019195,2]
[350691003,1738062654929,-500.0,0.00019195,2]
[350691004,1738062654937,-500.0,0.00019195,2]
[350691005,1738062654947,-500.0,0.00019195,2]
[350691006,1738062654956,-500.0,0.00019195,2]
[350691007,1738062654965,-500.0,0.00019195,2]
[350691008,1738062654974,-500.0,0.00019195,2]
[350691009,1738062654982,-500.0,0.00019195,2]
[350691010,1738062654991,-500.0,0.00019195,2]
[350691011,1738062655000,-764.69,0.00019195,2]
[350691012,1738062655009,-500.0,0.00019195,2]
[350691013,1738062655018,-500.0,0.00019195,2]
[350691014,1738062655027,-500.0,0.00019195,2]
[350691015,1738062655036,-150.0,0.00019195,2]
[350691016,1738062655045,-500.0,0.00019195,2]
[350691017,1738062655054,-306.68682613,0.00019195,2]
[350691018,1738062655063,-500.0,0.00019195,2]
[350691019,1738062655072,-500.0,0.00019195,2]
[350691020,1738062655081,-500.0,0.00019195,2]
[350691021,1738062655090,-500.0,0.00019195,2]
[350691022,1738062655099,-500.0,0.00019195,2]
[350691023,1738062655108,-500.0,0.00019195,2]
[350691024,1738062655117,-500.0,0.00019195,2]
[350691025,1738062655128,-500.0,0.00019195,2]
[350691026,1738062655137,-500.0,0.00019195,2]
[350691027,1738062655146,-580.99,0.00019195,2]
[350691028,1738062655155,-500.0,0.00019195,2]
[350691029,1738062655165,-500.0,0.00019195,2]
[350691030,1738062655173,-500.0,0.00019195,2]
[350691031,1738062655182,-375.77059929,0.00019195,2]
[350691032,1738062655191,-500.0,0.00019195,2]
[350691033,1738062655200,-500.0,0.00019195,2]
[350691034,1738062655209,-500.0,0.00019195,2]
[350691035,1738062655218,-500.0,0.00019195,2]
[350691036,1738062655227,-500.0,0.00019195,2]
[350691037,1738062655236,-575.25,0.00019195,2]
[350691038,1738062655245,-500.0,0.00019195,2]
[350691039,1738062655254,-537.26,0.00019195,2]
[350691040,1738062655263,-1350.66,0.00019195,2]
[350691041,1738062655272,-500.0,0.00019195,2]
[350691042,1738062655281,-500.0,0.00019195,2]
[350691043,1738062655290,-500.0,0.00019195,2]
[350691044,1738062655299,-500.0,0.00019195,2]
[350691045,1738062655308,-500.0,0.00019195,2]
[350691046,1738062655316,-500.0,0.00019195,2]
[350691047,1738062655325,-500.0,0.00019195,2]
[350691048,1738062655334,-504.99775531,0.00019195,2]
[350691049,1738062655343,-500.0,0.00019195,2]
[350691050,1738062655353,-388.43248341,0.00019195,2]
[350691051,1738062655365,-500.0,0.00019195,2]
[350691052,1738062655374,-547.2089608,0.00019195,2]
[350691053,1738062655383,-500.0,0.00019195,2]
[350691054,1738062655392,-500.0,0.00019195,2]
[350691055,1738062655402,-500.0,0.00019195,2]
[350691056,1738062655411,-500.0,0.00019195,2]
[350691057,1738062655420,-512.41878764,0.00019195,2]
[350691058,1738062655429,-500.0,0.00019195,2]
[350691059,1738062655440,-500.0,0.00019195,2]
[350691060,1738062655449,-500.0,0.00019195,2]
[350691061,1738062655458,-500.0,0.00019195,2]
[350691062,1738062655467,-500.0,0.00019195,2]
[350691063,1738062655476,-500.0,0.00019195,2]
[350691064,1738062655485,-507.96521856,0.00019195,2]
[350691065,1738062655494,-500.0,0.00019195,2]
[350691066,1738062655503,-500.0,0.00019195,2]
[350691067,1738062655511,-523.38859364,0.00019195,2]
[350691068,1738062655522,-500.0,0.00019195,2]
[350691069,1738062655531,-618.84,0.00019195,2]
[350691070,1738062655540,-500.0,0.00019195,2]
[350691071,1738062655549,-500.0,0.00019195,2]
[350691072,1738062655558,-500.0,0.00019195,2]
[350691073,1738062655567,-520.7,0.00019195,2]
[350691074,1738062655576,-500.0,0.00019195,2]
[350691075,1738062655585,-500.0,0.00019195,2]
[350691076,1738062655593,-517.69324285,0.00019195,2]
[350691077,1738062655602,-1013.47,0.00019195,2]
[350691078,1738062655611,-500.0,0.00019195,2]
[350691079,1738062655621,-500.0,0.00019195,2]
[350691080,1738062655631,-500.0,0.00019195,2]
[350691081,1738062655641,-500.0,0.00019195,2]
[350691082,1738062655650,-500.0,0.00019195,2]
[350691083,1738062655659,-500.0,0.00019195,2]
[350691084,1738062655668,-500.0,0.00019195,2]
[350691085,1738062655678,-500.0,0.00019195,2]
[350691086,1738062655687,-657.13,0.00019195,2]
[350691087,1738062655696,-500.0,0.00019195,2]
[350691088,1738062655705,-500.0,0.00019195,2]
[350691089,1738062655714,-500.0,0.00019195,2]
[350691090,1738062655724,-500.0,0.00019195,2]
[350691091,1738062655734,-716.23,0.00019195,2]
[350691092,1738062655744,-500.0,0.00019195,2]
[350691093,1738062655753,-523.88775382,0.00019195,2]
[350691094,1738062655763,-500.0,0.00019195,2]
[350691095,1738062655771,-549.72,0.00019195,2]
[350691096,1738062655780,-1054.54,0.00019195,2]
[350691097,1738062655789,-500.0,0.00019195,2]
[350691098,1738062655798,-520.32933026,0.00019195,2]
[350691099,1738062655807,-500.0,0.00019224,2]
[350691100,1738062655816,-500.0,0.00019224,2]
[350691101,1738062655824,-500.0,0.00019224,2]
[350691102,1738062655834,-500.0,0.00019224,2]
[350691103,1738062655843,-840.7,0.00019224,2]
[350691104,1738062655852,-500.0,0.00019224,2]
[350691105,1738062655861,-500.0,0.00019224,2]
[350691106,1738062655870,-691.56,0.00019224,2]
[350691107,1738062655879,-500.0,0.00019224,2]
[350691108,1738062655888,-500.0,0.00019224,2]
[350691109,1738062655897,-500.0,0.00019224,2]
[350691110,1738062655906,-500.0,0.00019224,2]
[350691111,1738062655915,-500.0,0.00019224,2]
[350691112,1738062655923,-500.0,0.00019224,2]
[350691113,1738062655933,-500.0,0.00019224,2]
[350691114,1738062655941,-500.0,0.00019224,2]
[350691115,1738062655951,-528.37,0.00019224,2]
[350691116,1738062655960,-500.0,0.00019224,2]
[350691117,1738062655968,-661.36,0.00019224,2]
[350691118,1738062655978,-500.0,0.00019224,2]
[350691119,1738062655987,-500.0,0.00019224,2]
[350691120,1738062655996,-500.0,0.00019224,2]
[350691121,1738062656005,-500.0,0.00019224,2]
[350691122,1738062656015,-500.0,0.00019224,2]
[350691123,1738062656024,-504.30943995,0.00019224,2]
[350691124,1738062656033,-500.0,0.00019224,2]
[350691125,1738062656042,-752.12,0.00019224,2]
[350691126,1738062656051,-500.0,0.00019224,2]
[350691127,1738062656060,-500.0,0.00019224,2]
[350691128,1738062656209,-455.41513598,0.00019224,2]
[350691129,1738062656218,-500.0,0.00019224,2]
[350691130,1738062656228,-500.0,0.00019224,2]
[350691131,1738062656237,-500.0,0.00019224,2]
[350691132,1738062656246,-500.0,0.00019224,2]
[350691133,1738062656255,-500.0,0.00019224,2]
[350691134,1738062656264,-528.62,0.00019224,2]
[350691135,1738062656273,-500.0,0.00019224,2]
[350691136,1738062656282,-500.0,0.00019224,2]
[350691137,1738062656291,-500.0,0.00019224,2]
[350691138,1738062656300,-500.0,0.00019224,2]
[350691139,1738062656310,-500.0,0.00019224,2]
[350691140,1738062656319,-500.0,0.00019224,2]
[350691141,1738062656328,-500.0,0.00019224,2]
[350691142,1738062656338,-500.0,0.00019224,2]
[350691143,1738062656347,-235.99817762,0.00019224,2]
[350691144,1738062656359,-668.28,0.00019224,2]
[350691145,1738062656369,-581.41,0.00019224,2]
[350691146,1738062656378,-787.69,0.00019224,2]
[350691147,1738062656387,-500.0,0.00019224,2]
[350691148,1738062656398,-500.0,0.00019224,2]
[350691149,1738062656407,-624.14,0.00019224,2]
[350691150,1738062656416,-500.0,0.00019224,2]
[350691151,1738062656425,-894.35,0.00019224,2]
[350691152,1738062656435,-668.42,0.00019224,2]
[350691153,1738062656445,-500.0,0.00019224,2]
[350691154,1738062656454,-503.31654493,0.00019225,2]
[350691155,1738062656463,-500.0,0.00019225,2]
[350691156,1738062656472,-500.0,0.00019225,2]
[350691157,1738062656481,-500.0,0.00019225,2]
[350691158,1738062656490,-535.32886216,0.00019225,2]
[350691159,1738062656499,-500.0,0.00019225,2]
[350691160,1738062656508,-500.0,0.00019225,2]
[350691161,1738062656517,-1115.79,0.00019225,2]
[350691162,1738062656526,-500.0,0.00019225,2]
[350691163,1738062656536,-910.7,0.00019225,2]
[350691164,1738062656546,-500.0,0.00019225,2]
[350691165,1738062656555,-811.25,0.00019225,2]
[350691166,1738062656564,-500.0,0.00019225,2]
[350691167,1738062656573,-500.0,0.00019225,2]
[350691168,1738062656582,-500.0,0.00019225,2]
[350691169,1738062656591,-816.76,0.00019225,2]
[350691170,1738062656600,-625.84,0.00019225,2]
[350691171,1738062656608,-1130.4,0.00019225,2]
[350691172,1738062656617,-500.0,0.00019225,2]
[350691173,1738062656627,-1492.49,0.00019225,2]
[350691174,1738062656636,-1165.43,0.00019225,2]
[350691175,1738062656645,-1259.62,0.00019225,2]
[350691176,1738062656654,-500.0,0.00019225,2]
[350691177,1738062656664,-1085.9,0.00019225,2]
[350691178,1738062656673,-921.96,0.00019225,2]
[350691179,1738062656682,-150.0,0.00019238,2]
[350691180,1738062656691,-150.0,0.00019239,2]
[350691181,1738062656699,-1000.0,0.00019246,2]
[350691182,1738062656708,-150.0,0.00019267,2]
[350691183,1738062656717,-242.95885399,0.00019271,5]
[350691184,1738062656726,-150.0,0.00019271,2]
[350691185,1738062656736,-500.0,0.00019272,2]
[350691186,1738062656745,-500.0,0.00019272,2]
[350691187,1738062656754,-500.0,0.00019272,2]
[350691188,1738062656763,-500.0,0.00019272,2]
[350691189,1738062656772,-500.0,0.00019272,2]
[350691190,1738062656781,-500.0,0.00019272,2]
[350691191,1738062656790,-500.0,0.00019272,2]
[350691192,1738062656799,-500.0,0.00019272,2]
[350691193,1738062656808,-500.0,0.00019272,2]
[350691194,1738062656817,-602.89,0.00019272,2]
[350691195,1738062656825,-500.0,0.00019272,2]
[350691196,1738062656834,-500.0,0.00019272,2]
[350691197,1738062656843,-515.36,0.00019272,2]
[350691198,1738062656852,-812.61,0.00019272,2]
[350691199,1738062656861,-500.0,0.00019272,2]
[350691200,1738062656870,-568.04,0.00019272,2]
[350691201,1738062656880,-500.0,0.00019272,2]
[350691202,1738062656889,-500.0,0.00019272,2]
[350691203,1738062656897,-500.0,0.00019272,2]
[350691204,1738062656906,-603.98,0.00019272,2]
[350691205,1738062656915,-500.0,0.00019272,2]
[350691206,1738062656924,-500.0,0.00019272,2]
[350691207,1738062656933,-500.0,0.00019272,2]
[350691208,1738062656942,-500.0,0.00019272,2]
[350691209,1738062656951,-537.2,0.00019272,2]
[350691210,1738062656961,-500.0,0.00019272,2]
[350691211,1738062656971,-500.0,0.00019272,2]
[350691212,1738062656980,-500.0,0.00019272,2]
[350691213,1738062656989,-500.0,0.00019272,2]
[350691214,1738062656998,-721.17,0.00019272,2]
[350691215,1738062657008,-550.19,0.00019272,2]
[350691216,1738062657018,-527.92,0.00019272,2]
[350691217,1738062657027,-500.0,0.00019272,2]
[350691218,1738062657036,-500.0,0.00019272,2]
[350691219,1738062657046,-790.85,0.00019272,2]
[350691220,1738062657054,-500.0,0.00019272,2]
[350691221,1738062657063,-500.0,0.00019272,2]
[350691222,1738062657072,-500.0,0.00019272,2]
[350691223,1738062657083,-500.0,0.00019272,2]
[350691224,1738062657092,-889.23,0.00019272,2]
[350691225,1738062657101,-500.0,0.00019272,2]
[350691226,1738062657110,-500.0,0.00019272,2]
[350691227,1738062657119,-500.0,0.00019272,2]
[350691228,1738062657128,-500.0,0.00019272,2]
[350691229,1738062657138,-500.0,0.00019272,2]
[350691230,1738062657147,-500.0,0.00019272,2]
[350691231,1738062657157,-500.0,0.00019272,2]
[350691232,1738062657166,-500.0,0.00019272,2]
[350691233,1738062657175,-500.0,0.00019272,2]
[350691234,1738062657184,-500.0,0.00019272,2]
[350691235,1738062657193,-500.0,0.00019272,2]
[350691236,1738062657202,-502.54,0.00019272,2]
[350691237,1738062657212,-500.0,0.00019272,2]
[350691238,1738062657221,-500.0,0.00019272,2]
[350691239,1738062657231,-234.57127852,0.00019272,2]
[350691240,1738062657240,-500.0,0.00019272,2]
[350691241,1738062657249,-1164.44,0.00019272,2]
[350691242,1738062657258,-507.23,0.00019272,2]
[350691243,1738062657268,-500.0,0.00019272,2]
[350691244,1738062657277,-683.25,0.00019272,2]
[350691245,1738062657286,-971.02,0.00019272,2]
[350691246,1738062657295,-1617.07,0.00019272,2]
[350691247,1738062657304,-869.34,0.00019272,2]
[350691248,1738062657314,-500.0,0.00019272,2]
[350691249,1738062657323,-2939.23,0.00019272,2]
[350691250,1738062657332,-674.99,0.00019272,2]
[350691251,1738062657341,-981.59,0.00019272,2]
[350691252,1738062657350,-507.12,0.00019272,2]
[350691253,1738062657364,-500.0,0.00019272,2]
[350691254,1738062657374,-500.0,0.00019272,2]
[350691255,1738062657383,-958.26,0.00019272,2]
[350691256,1738062657392,-542.64,0.00019272,2]
[350691257,1738062657402,-796.45,0.00019272,2]
[350691258,1738062657411,-1419.19,0.00019272,2]
[350691259,1738062657420,-500.0,0.00019272,2]
[350691260,1738062657430,-668.5,0.00019272,2]
[350691261,1738062657439,-1125.31,0.00019272,2]
[350691262,1738062657449,-905.22,0.00019272,2]
[350691263,1738062657458,-612.33,0.00019272,2]
[350691264,1738062657468,-4862.1,0.00019272,2]
[350691265,1738062657478,-1191.17,0.00019272,2]
[350691266,1738062657487,-675.39,0.00019272,2]
[350691267,1738062657496,-616.84,0.00019272,2]
[350691268,1738062657505,-9192.91121352,0.00019272,2]
[350691269,1738062657515,-2000.0,0.00019273,2]
[350691270,1738062657524,-200.0,0.00019273,2]
[350691271,1738062657533,-3000.0,0.00019273,2]
[350691272,1738062657542,-150.0,0.00019279,2]
[350691273,1738062657551,-15671.4,0.00019281,2]
[350691274,1738062657561,-1116.62290023,0.00019283,2]
[350691275,1738062657570,-509.2189523,0.00019285,2]
[350691276,1738062657579,-901.202383,0.00019285,2]
[350691277,1738062657590,-16514.668614,0.00019285,2]
[350691278,1738062657599,-5176.3186482,0.00019286,2]
[350691279,1738062657608,-288.1969267,0.00019286,2]
[350691280,1738062657618,-177.2583401,0.00019286,2]
[350691281,1738062657628,-398.4740545,0.00019286,2]
[350691282,1738062657638,-688.54,0.00019288,2]
[350691283,1738062657647,-500.0,0.00019288,2]
[350691284,1738062657657,-1385.3,0.00019288,2]
[350691285,1738062657667,-500.0,0.00019288,2]
[350691286,1738062657676,-695.76,0.00019289,2]
[350691287,1738062657685,-500.0,0.00019289,2]
[350691288,1738062657695,-500.0,0.00019289,2]
[350691289,1738062657705,-500.0,0.00019289,2]
[350691290,1738062657714,-500.0,0.00019289,2]
[350691291,1738062657724,-500.0,0.00019289,2]
[350691292,1738062657733,-500.0,0.00019289,2]
[350691293,1738062657742,-602.29,0.00019289,2]
[350691294,1738062657751,-500.0,0.00019289,2]
[350691295,1738062657760,-500.0,0.00019289,2]
[350691296,1738062657769,-500.0,0.00019289,2]
[350691297,1738062657777,-500.0,0.00019289,2]
[350691298,1738062657786,-500.0,0.00019289,2]
[350691299,1738062657795,-644.37861994,0.00019289,2]
[350691300,1738062657804,-446.74763847,0.00019289,2]
[350691301,1738062657813,-500.0,0.00019289,2]
[350691302,1738062657822,-500.0,0.00019289,2]
[350691303,1738062657831,-500.0,0.00019289,2]
[350691304,1738062657840,-500.0,0.00019289,2]
[350691305,1738062657849,-551.07,0.00019289,2]
[350691306,1738062657858,-507.4,0.00019289,2]
[350691307,1738062657867,-500.0,0.00019289,2]
[350691308,1738062657876,-840.7,0.00019289,2]
[350691309,1738062657886,-500.0,0.00019289,2]
[350691310,1738062657895,-500.0,0.00019289,2]
[350691311,1738062657904,-500.0,0.00019289,2]
[350691312,1738062657913,-500.0,0.00019289,2]
[350691313,1738062657922,-500.0,0.00019289,2]
[350691314,1738062657932,-518.09,0.00019289,2]
[350691315,1738062657941,-321.61725532,0.00019289,2]
[350691316,1738062657950,-500.0,0.00019289,2]
[350691317,1738062657960,-500.0,0.00019289,2]
[350691318,1738062657969,-691.56,0.00019289,2]
[350691319,1738062657979,-500.0,0.00019289,2]
[350691320,1738062657988,-500.0,0.00019289,2]
[350691321,1738062657998,-502.53281396,0.00019289,2]
[350691322,1738062658008,-500.0,0.00019289,2]
[350691323,1738062658018,-516.07915188,0.00019289,2]
[350691324,1738062658028,-500.0,0.00019289,2]
[350691325,1738062658037,-500.0,0.00019289,2]
[350691326,1738062658048,-281.41146733,0.00019289,2]
[350691327,1738062658524,-452.28659435,0.00018697,2]
[350691328,1738062658539,-75.68819634,0.00018697,2]
[350691329,1738062658547,-218.58853267,0.00019289,2]
[350691330,1738062658557,-500.0,0.00019289,2]
[350691331,1738062658566,-35.03287,0.00019289,2]
[350691332,1738062658577,-465.94713,0.00019289,2]
[350691333,1738062658586,-500.0,0.00019289,2]
[350691334,1738062658595,-506.07727707,0.00019289,2]
[350691335,1738062658603,-737.09,0.00019289,2]
[350691336,1738062658612,-1063.85,0.00019289,2]
[350691337,1738062658621,-500.0,0.00019289,2]
[350691338,1738062658631,-500.0,0.00019289,2]
[350691339,1738062658640,-500.0,0.00019289,2]
[350691340,1738062658649,-482.95800636,0.00019289,2]
[350691341,1738062658660,-337.10199364,0.00019289,2]
[350691342,1738062658669,-500.0,0.00019289,2]
[350691343,1738062658678,-500.0,0.00019289,2]
[350691344,1738062658688,-1179.65,0.00019289,2]
[350691345,1738062658697,-505.29130415,0.00019289,2]